bitfinex/quotes_SOLUSD_20241024
["timestamp","ask_amount","ask_price","bid_price","bid_amount"]
[1729798886134,25.6477,177.07,177.03,31.01293076]
[1729798886434,25.6477,177.07,176.97,6.3506]
[1729798886633,45.507166,177.07,177.02,19.859466]
[1729798889038,25.6477,177.07,177.02,19.859466]
[1729798891138,45.507166,177.07,177.02,19.859466]
[1729798891744,45.507166,177.07,177.01,19.859466]
[1729798892239,45.507166,177.07,176.97,6.3506]
[1729798892545,9.929733,177.03,176.97,6.3506]
[1729798892726,9.929733,177.03,176.94,15.7461]
[1729798892727,39.859466,177.01,176.96,19.859466]
[1729798892925,5.6484,177.04,177.0,19.859466]
[1729798893129,20.0,177.06,176.95,0.1]
[1729798893322,25.6481,177.06,176.95,0.1]
[1729798893543,25.6481,177.06,176.96,15.0189]
[1729798893730,25.6481,177.06,177.04,19.859466]
[1729798895137,25.6481,177.06,177.03,19.859466]
[1729798899250,5.6481,177.06,177.04,19.859466]
[1729798900230,25.6474,177.07,177.04,19.859466]
[1729798901044,5.6471,177.08,177.06,19.859466]
[1729798901240,19.859466,177.11,177.07,19.859466]
[1729798901241,5.89718,177.11,177.07,19.859466]
[1729798902746,20.0,177.1,177.07,19.859466]
[1729798903651,5.6468,177.09,177.07,19.859466]
[1729798905454,20.25098,177.11,177.07,19.859466]
[1729798905753,5.6465,177.1,177.07,19.859466]
[1729798907934,5.6465,177.1,177.06,19.859466]
[1729798911058,5.6465,177.1,177.07,19.859466]
[1729798911240,25.6462,177.11,177.0,0.1]
[1729798911556,25.6462,177.11,177.08,19.859466]
[1729798911947,25.6462,177.11,177.08,9.929733]
[1729798912140,25.6462,177.11,177.07,19.859466]
[1729798917952,5.6462,177.11,177.07,19.859466]
[1729798919365,20.12549,177.1,177.0,23.776884]
[1729798919669,39.859466,177.08,177.03,19.859466]
[1729798919867,19.859466,177.08,177.03,19.859466]
[1729798920038,39.984956,177.07,176.99,6.1611]
[1729798920238,39.984956,177.07,177.01,19.859466]
[1729798920662,5.6478,177.06,177.02,19.859466]
[1729798920859,20.0,177.05,177.02,19.859466]
[1729798921857,20.0,177.05,177.01,19.859466]
[1729798922053,5.6478,177.06,176.96,15.0189]
[1729798922054,45.632756,177.06,176.96,15.0189]
[1729798922366,45.632756,177.06,176.98,19.859466]
[1729798922367,20.0,177.03,176.98,19.859466]
[1729798922540,0.12549,177.05,177.0,19.859466]
[1729798922746,20.0,177.05,177.03,19.859466]
[1729798923441,5.6478,177.06,177.03,19.859466]
[1729798923643,20.37647,177.1,177.03,19.859466]
[1729798923841,20.12549,177.07,177.03,19.859466]
[1729798924251,20.12549,177.07,176.97,23.776884]
[1729798924450,20.12549,177.07,177.02,19.859466]
[1729798924650,20.12549,177.07,177.03,19.859466]
[1729798924851,5.6462,177.11,177.06,19.859466]
[1729798925060,27.24721231,177.12,177.09,19.859466]
[1729798927070,20.0,177.11,177.07,19.859466]
[1729798927365,20.0,177.11,177.06,19.859466]
[1729798927566,20.0,177.11,177.07,19.859466]
[1729798927764,20.0,177.11,177.08,19.859466]
[1729798928372,25.6463,177.11,177.08,19.859466]
[1729798928665,25.6463,177.11,177.09,19.859466]
[1729798929172,25.6463,177.11,177.08,19.859466]
[1729798934071,20.0,177.11,177.09,19.859466]
[1729798934284,5.82931231,177.12,177.1,19.859466]
[1729798934568,5.6453,177.14,177.11,19.859466]
[1729798935670,15.8298,177.16,177.11,19.859466]
[1729798935854,5.6449,177.15,177.11,19.859466]
[1729798939876,5.6449,177.15,177.12,19.859466]
[1729798940064,5.6449,177.15,177.13,19.859466]
[1729798942377,5.6449,177.15,177.12,19.859466]
[1729798943562,5.6449,177.15,177.11,19.859466]
[1729798945264,25.504366,177.15,177.1,19.859466]
[1729798946280,39.859466,177.14,177.04,23.776884]
[1729798946487,20.0,177.11,177.03,15.2394]
[1729798946675,19.859466,177.09,177.04,19.859466]
[1729798947583,19.859466,177.08,177.01,6.2463]
[1729798947769,19.859466,177.09,177.04,19.859466]
[1729798948883,5.6471,177.08,177.04,19.859466]
[1729798949082,5.6471,177.08,177.05,19.859466]
[1729798951288,25.506266,177.09,177.05,19.859466]
[1729798951476,25.506266,177.09,177.04,19.859466]
[1729798951983,25.506266,177.09,177.01,6.2463]
[1729798952191,25.506266,177.09,177.05,19.859466]
[1729798952684,20.0,177.15,177.08,19.859466]
[1729798952889,19.859466,177.15,177.1,19.859466]
[1729798953069,5.6449,177.15,177.1,19.859466]
[1729798953475,25.504366,177.15,177.1,19.859466]
[1729798954273,20.0,177.14,177.1,19.859466]
[1729798954673,20.0,177.14,177.11,19.859466]
[1729798955577,25.6449,177.15,177.11,19.859466]
[1729798958184,45.504366,177.15,177.1,19.859466]
[1729798958686,25.628556,177.19,177.14,19.859466]
[1729798958889,0.12549,177.17,177.14,19.859466]
[1729798959088,0.12549,177.17,177.12,19.859466]
[1729798959793,5.6434,177.2,177.16,19.859466]
[1729798959993,5.6434,177.2,177.1,6.2419]
[1729798960177,5.6427,177.22,177.17,19.859466]
[1729798960377,5.6427,177.22,177.18,19.859466]
[1729798960893,5.6417,177.25,177.21,19.859466]
[1729798961276,42.00706089,177.27,177.22,19.859466]
[1729798961470,41.032166,177.27,177.22,19.859466]
[1729798961989,21.1727,177.27,177.22,19.859466]
[1729798962196,0.12549,177.26,177.22,19.859466]
[1729798962374,21.1727,177.27,177.23,19.859466]
[1729798962975,21.1727,177.27,177.22,19.859466]
[1729798963176,5.6414,177.27,177.24,19.859466]
[1729798963392,5.6414,177.27,177.25,19.859466]
[1729798965608,5.6414,177.27,177.24,19.859466]
[1729798965892,5.6414,177.27,177.23,19.859466]
[1729798966095,19.859466,177.26,177.21,19.859466]
[1729798966683,19.859466,177.26,177.2,19.859466]
[1729798967191,5.6417,177.25,177.2,19.859466]
[1729798967593,25.501166,177.25,177.17,6.2419]
[1729798967799,19.859466,177.21,177.14,15.9437]
[1729798968001,19.859466,177.2,177.15,19.859466]
[1729798968303,19.859466,177.2,177.14,35.803166]
[1729798969100,25.502766,177.2,177.14,35.803166]
[1729798969405,25.502766,177.2,177.14,19.859466]
[1729798969595,19.859466,177.19,177.13,26.398266]
[1729798969799,19.859466,177.18,177.13,6.5388]
[1729798970093,19.859466,177.17,177.12,19.859466]
[1729798971384,25.503966,177.17,177.12,19.859466]
[1729798973398,25.503966,177.17,177.11,19.859466]
[1729798973603,19.859466,177.16,177.1,36.376366]
[1729798973802,19.859466,177.16,177.1,19.859466]
[1729798975203,25.504366,177.16,177.11,19.859466]
[1729798975386,5.6449,177.16,177.11,19.859466]
[1729798976923,20.25098,177.21,177.13,19.859466]
[1729798977205,39.859466,177.18,177.13,19.859466]
[1729798977803,19.859466,177.17,177.12,19.859466]
[1729798978279,25.503866,177.17,177.12,19.859466]
[1729798979302,25.503866,177.17,177.11,19.859466]
[1729798979678,19.859466,177.15,177.09,6.617]
[1729798979884,19.859466,177.13,177.07,43.63635]
[1729798980902,25.505066,177.13,177.07,19.859466]
[1729798981804,25.505066,177.13,177.08,19.859466]
[1729798981990,5.6456,177.13,177.09,19.859466]
[1729798983112,19.859466,177.15,177.09,19.859466]
[1729798983299,25.504466,177.15,177.1,19.859466]
[1729798984212,25.504466,177.15,177.09,19.859466]
[1729798984419,19.859466,177.11,177.05,6.4687]
[1729798984593,19.859466,177.11,177.06,19.859466]
[1729798984795,19.859466,177.1,177.05,19.859466]
[1729798984994,19.859466,177.09,177.04,19.859466]
[1729798985299,25.506266,177.09,177.04,19.859466]
[1729798986413,36.67101276,177.09,177.04,31.02421276]
[1729798989298,31.02421276,177.05,176.98,16.255]
[1729798989495,31.02421276,177.03,176.98,31.02421276]
[1729798990217,31.02421276,177.02,176.97,31.02421276]
[1729798990711,31.02421276,177.01,176.96,31.02421276]
[1729798991823,31.02421276,177.02,176.97,31.02421276]
[1729798992003,36.67311276,177.03,176.97,31.02421276]
[1729798992205,0.12549,177.08,177.02,31.02421276]
[1729798992406,52.45991276,177.09,177.04,31.02421276]
[1729798992704,31.02421276,177.07,177.02,31.02421276]
[1729798993104,31.02421276,177.08,177.02,31.02421276]
[1729798993501,20.0,177.07,177.02,31.02421276]
[1729798994816,52.45981276,177.09,177.04,31.02421276]
[1729798995022,5.6465,177.1,177.06,31.02421276]
[1729798996218,5.6459,177.12,177.08,31.02421276]
[1729798996597,36.67011276,177.12,177.06,31.02421276]
[1729798998217,31.02421276,177.11,177.06,31.02421276]
[1729798998417,31.02421276,177.1,177.05,31.02421276]
[1729798998917,31.02421276,177.08,177.03,31.02421276]
[1729798999899,5.6474,177.07,177.03,31.02421276]
[1729799001019,31.02421276,177.06,177.01,31.02421276]
[1729799001226,31.02421276,177.04,176.98,31.02421276]
[1729799001520,31.02421276,177.04,176.99,31.02421276]
[1729799002234,31.02421276,177.04,176.98,31.02421276]
[1729799002420,31.02421276,177.02,176.97,31.02421276]
[1729799002600,31.02421276,177.03,176.97,31.02421276]
[1729799003822,36.67291276,177.03,176.97,31.02421276]
[1729799004324,36.67291276,177.03,176.98,31.02421276]
[1729799004523,37.52035791,177.03,176.98,31.02421276]
[1729799005221,31.02421276,177.05,176.99,31.02421276]
[1729799005425,31.02421276,177.05,177.0,31.02421276]
[1729799006000,31.02421276,177.05,176.99,31.02421276]
[1729799006326,36.67241276,177.05,176.99,31.02421276]
[1729799007524,31.02421276,177.04,176.99,31.02421276]
[1729799007722,21.16030638,177.05,176.99,31.02421276]
[1729799007926,36.67241276,177.05,176.99,31.02421276]
[1729799008316,31.02421276,177.03,176.98,31.02421276]
[1729799008504,31.02421276,177.03,176.97,31.02421276]
[1729799009227,31.02421276,177.02,176.97,31.02421276]
[1729799009621,36.67301276,177.03,176.97,31.02421276]
[1729799010809,6.49620572,177.03,176.98,31.02421276]
[1729799011009,5.6488,177.03,176.99,31.02421276]
[1729799011709,6.49619843,177.03,176.98,31.02421276]
[1729799012125,0.84713653,177.1,177.03,22.8347]
[1729799012328,0.97561758,177.11,177.1,23.776884]
[1729799012627,5.8246524,177.2,177.1,54.90109676]
[1729799012814,36.66691276,177.22,177.16,31.02421276]
[1729799013014,37.51356565,177.22,177.16,31.02421276]
[1729799013526,31.02421276,177.18,177.12,31.02421276]
[1729799013729,31.02421276,177.17,177.11,31.02421276]
[1729799013917,31.02421276,177.17,177.1,23.776884]
[1729799013918,31.02421276,177.19,177.13,31.02421276]
[1729799014227,31.02421276,177.2,177.14,31.02421276]
[1729799014404,31.02421276,177.21,177.15,31.02421276]
[1729799014603,31.02421276,177.18,177.13,31.02421276]
[1729799015026,31.02421276,177.17,177.11,31.02421276]
[1729799016007,31.02421276,177.17,177.12,31.02421276]
[1729799016421,31.02421276,177.18,177.12,31.02421276]
[1729799016629,20.0,177.16,177.12,31.02421276]
[1729799016822,20.0,177.16,177.11,31.02421276]
[1729799017017,51.02421276,177.16,177.11,31.02421276]
[1729799018012,51.02421276,177.16,177.1,31.02421276]
[1729799018211,31.02421276,177.14,177.08,31.02421276]
[1729799018427,31.02421276,177.14,177.04,0.25098]
[1729799018428,31.02421276,177.13,177.07,31.02421276]
[1729799018826,31.02421276,177.14,177.08,31.02421276]
[1729799019131,20.0,177.13,177.08,31.02421276]
[1729799019331,51.02421276,177.13,177.07,31.02421276]
[1729799019933,56.66971276,177.13,177.07,31.02421276]
[1729799020126,31.02421276,177.12,177.06,31.02421276]
[1729799020631,31.02421276,177.12,177.07,31.02421276]
[1729799020824,31.02421276,177.12,177.03,6.6359]
[1729799020825,31.02421276,177.12,177.06,31.02421276]
[1729799021221,31.02421276,177.12,177.07,31.02421276]
[1729799021411,20.0,177.13,177.09,31.02421276]
[1729799021617,56.66971276,177.13,177.08,31.02421276]
[1729799021811,25.6455,177.13,177.09,31.02421276]
[1729799022030,56.66971276,177.13,177.08,31.02421276]
[1729799022622,56.66971276,177.13,177.07,31.02421276]
[1729799023233,20.0,177.13,177.09,31.02421276]
[1729799025822,20.0,177.13,177.08,31.02421276]
[1729799026440,51.02421276,177.13,177.08,31.02421276]
[1729799026619,20.0,177.13,177.09,31.02421276]
[1729799027636,20.84683518,177.15,177.11,31.02421276]
[1729799028014,20.84683518,177.15,177.12,31.02421276]
[1729799028734,20.84683518,177.15,177.14,31.02421276]
[1729799028938,0.84683518,177.15,177.14,31.02421276]
[1729799036134,0.84683518,177.15,177.13,31.02421276]
[1729799039037,0.84683518,177.15,177.14,31.02421276]
[1729799040430,0.84683518,177.15,177.12,31.02421276]
[1729799042145,0.84683518,177.15,177.13,31.02421276]
[1729799044935,0.84683518,177.15,177.14,31.02421276]
[1729799049646,31.02421276,177.2,177.14,31.02421276]
[1729799049647,20.0,177.21,177.14,31.02421276]
[1729799049852,20.0,177.21,177.18,31.02421276]
[1729799050332,20.0,177.21,177.18,19.82379334]
[1729799050852,20.0,177.21,177.16,19.82379334]
[1729799051353,39.82379334,177.21,177.16,19.82379334]
[1729799051752,20.0,177.21,177.16,19.82379334]
[1729799051930,20.0,177.21,177.17,19.82379334]
[1729799052234,25.643,177.21,177.17,30.97798034]
[1729799056149,5.643,177.21,177.17,30.97798034]
[1729799056653,16.74955289,177.22,177.18,15.48899017]
[1729799056849,6.1026,177.26,177.21,30.97798034]
[1729799057036,15.5133,177.27,177.22,30.97798034]
[1729799057952,30.97798034,177.23,177.18,30.97798034]
[1729799058149,30.97798034,177.2,177.14,30.97798034]
[1729799058535,30.97798034,177.2,177.15,30.97798034]
[1729799059454,5.6433,177.2,177.15,30.97798034]
[1729799059955,20.0,177.22,177.17,30.97798034]
[1729799060154,20.0,177.22,177.2,30.97798034]
[1729799060354,50.97798034,177.25,177.2,30.97798034]
[1729799060548,50.97798034,177.25,177.12,30.97798034]
[1729799060549,50.97798034,177.25,177.19,30.97798034]
[1729799060738,20.0,177.23,177.19,30.97798034]
[1729799061751,56.62058034,177.23,177.17,30.97798034]
[1729799061935,30.97798034,177.22,177.16,30.97798034]
[1729799063362,36.62078034,177.22,177.16,30.97798034]
[1729799064057,36.62078034,177.22,177.17,30.97798034]
[1729799065158,30.97798034,177.21,177.16,30.97798034]
[1729799065458,36.62078034,177.22,177.16,30.97798034]
[1729799066258,30.97798034,177.21,177.12,23.776884]
[1729799066471,36.62078034,177.22,177.17,30.97798034]
[1729799067641,30.97798034,177.21,177.15,30.97798034]
[1729799067843,30.97798034,177.21,177.16,30.97798034]
[1729799068053,36.62078034,177.22,177.17,30.97798034]
[1729799069460,37.46733529,177.22,177.17,30.97798034]
[1729799070357,15.5133,177.27,177.21,30.97798034]
[1729799070556,15.5133,177.27,177.23,30.97798034]
[1729799070952,21.1544,177.27,177.23,30.97798034]
[1729799071466,21.1544,177.27,177.22,30.97798034]
[1729799071766,52.13238034,177.27,177.21,30.97798034]
[1729799072068,52.97875861,177.27,177.21,30.97798034]
[1729799072250,20.0,177.26,177.22,30.97798034]
[1729799072855,25.6416,177.26,177.22,30.97798034]
[1729799073357,25.6416,177.26,177.21,30.97798034]
[1729799073541,30.97798034,177.24,177.18,30.97798034]
[1729799073744,30.97798034,177.19,177.08,6.2719]
[1729799073939,30.97798034,177.17,177.11,30.97798034]
[1729799074368,19.83896966,177.16,177.11,19.83896966]
[1729799075061,19.83896966,177.14,177.08,6.2719]
[1729799075243,19.83896966,177.13,177.08,19.83896966]
[1729799075451,19.83896966,177.15,177.1,19.83896966]
[1729799076465,0.84669328,177.18,177.14,31.00448036]
[1729799076638,0.84669328,177.18,177.16,31.00448036]
[1729799077771,0.84669328,177.18,177.17,31.00448036]
[1729799087054,56.64718036,177.23,177.17,31.00448036]
[1729799087254,56.64718036,177.23,177.18,31.00448036]
[1729799088183,25.6427,177.23,177.18,31.00448036]
[1729799088479,25.6427,177.23,177.19,31.00448036]
[1729799088769,20.0,177.24,177.2,31.00448036]
[1729799089083,20.0,177.25,177.21,31.00448036]
[1729799090375,25.6417,177.25,177.21,31.00448036]
[1729799090961,31.00448036,177.24,177.19,31.00448036]
[1729799091563,31.00448036,177.24,177.18,31.00448036]
[1729799093265,31.00448036,177.23,177.18,31.00448036]
[1729799093466,31.00448036,177.24,177.18,31.00448036]
[1729799095758,57.49259571,177.25,177.19,31.00448036]
[1729799095981,20.84641535,177.25,177.2,31.00448036]
[1729799096367,51.85089571,177.25,177.19,31.00448036]
[1729799097882,31.85089571,177.25,177.19,31.00448036]
[1729799098172,31.85089571,177.25,177.18,31.00448036]
[1729799098173,31.00448036,177.23,177.18,31.00448036]
[1729799098377,31.00448036,177.23,177.13,6.5689]
[1729799098378,31.00448036,177.22,177.16,31.00448036]
[1729799099882,36.64718036,177.22,177.16,31.00448036]
[1729799100265,36.64718036,177.22,177.17,31.00448036]
[1729799101077,31.00448036,177.22,177.17,31.00448036]
[1729799101476,37.49269571,177.25,177.19,31.00448036]
[1729799101667,20.0,177.24,177.19,31.00448036]
[1729799101990,31.00448036,177.23,177.17,31.00448036]
[1729799103062,31.00448036,177.23,177.18,31.00448036]
[1729799104082,20.0,177.24,177.2,31.00448036]
[1729799104390,31.85089571,177.25,177.2,31.00448036]
[1729799104689,31.85089571,177.25,177.19,31.00448036]
[1729799105979,31.85089571,177.25,177.2,31.00448036]
[1729799106180,31.00448036,177.29,177.24,31.00448036]
[1729799106384,19.8097044,177.29,177.24,19.8097044]
[1729799107390,19.8097044,177.28,177.2,23.776884]
[1729799107569,19.8097044,177.28,177.23,19.8097044]
[1729799108360,30.95643934,177.28,177.23,30.95643934]
[1729799109074,30.95643934,177.29,177.24,30.95643934]
[1729799109889,30.95643934,177.3,177.25,30.95643934]
[1729799111380,30.95643934,177.28,177.22,30.95643934]
[1729799111583,25.6395,177.32,177.26,30.95643934]
[1729799111790,56.59593934,177.32,177.26,30.95643934]
[1729799111977,56.59593934,177.32,177.27,30.95643934]
[1729799113275,56.59593934,177.32,177.26,30.95643934]
[1729799113886,30.95643934,177.29,177.23,30.95643934]
[1729799114084,30.95643934,177.28,177.23,30.95643934]
[1729799114993,36.59723934,177.28,177.23,30.95643934]
[1729799115302,30.95643934,177.27,177.22,30.95643934]
[1729799116388,30.95643934,177.26,177.21,30.95643934]
[1729799116696,30.95643934,177.26,177.22,23.776884]
[1729799116899,56.59593934,177.32,177.25,30.95643934]
[1729799117083,56.59593934,177.32,177.26,30.95643934]
[1729799117482,56.59593934,177.32,177.27,30.95643934]
[1729799118002,56.59593934,177.32,177.26,30.95643934]
[1729799119397,30.95643934,177.31,177.26,30.95643934]
[1729799119582,30.95643934,177.27,177.22,23.776884]
[1729799119785,30.95643934,177.26,177.21,54.73332334]
[1729799120903,30.95643934,177.23,177.18,30.95643934]
[1729799121198,30.95643934,177.22,177.17,30.95643934]
[1729799122397,30.95643934,177.22,177.18,23.776884]
[1729799122593,30.95643934,177.22,177.17,30.95643934]
[1729799123892,31.80282711,177.25,177.2,30.95643934]
[1729799124198,0.84638777,177.25,177.21,30.95643934]
[1729799124403,0.84638777,177.25,177.23,30.95643934]
[1729799124587,0.84638777,177.25,177.24,30.95643934]
[1729799125397,30.95643934,177.29,177.24,30.95643934]
[1729799125890,30.95643934,177.28,177.23,30.95643934]
[1729799126208,30.95643934,177.29,177.24,30.95643934]
[1729799126500,30.95643934,177.3,177.25,30.95643934]
[1729799126697,36.59633934,177.31,177.25,30.95643934]
[1729799127404,30.95643934,177.31,177.26,30.95643934]
[1729799127795,30.95643934,177.31,177.25,30.95643934]
[1729799128387,30.95643934,177.31,177.26,30.95643934]
[1729799128802,30.95643934,177.31,177.25,30.95643934]
[1729799130589,36.59623934,177.31,177.25,30.95643934]
[1729799130988,36.59623934,177.31,177.26,30.95643934]
[1729799131204,14.6932702,177.35,177.28,30.95643934]
[1729799131205,20.5966702,177.35,177.28,30.95643934]
[1729799131509,20.5966702,177.35,177.27,23.776884]
[1729799131510,0.5966702,177.35,177.32,30.95643934]
[1729799132093,0.5966702,177.35,177.32,15.47821967]
[1729799132283,6.48532656,177.33,177.28,30.95643934]
[1729799132488,37.4417659,177.33,177.28,30.95643934]
[1729799133008,0.84612656,177.33,177.28,30.95643934]
[1729799133996,30.95643934,177.32,177.26,23.776884]
[1729799134194,6.48552656,177.33,177.28,30.95643934]
[1729799134195,37.4419659,177.33,177.28,30.95643934]
[1729799136912,36.59603934,177.32,177.27,30.95643934]
[1729799137421,0.5966702,177.35,177.31,15.47821967]
[1729799137597,0.5966702,177.35,177.31,30.95643934]
[1729799137798,37.19170954,177.35,177.29,30.95643934]
[1729799138616,31.55310954,177.35,177.3,30.95643934]
[1729799139120,0.5966702,177.35,177.31,30.95643934]
[1729799141706,0.5966702,177.35,177.34,30.95643934]
[1729799143703,0.5966702,177.35,177.34,54.73332334]
[1729799145821,0.5966702,177.35,177.31,16.244]
[1729799146114,0.5966702,177.35,177.33,30.95643934]
[1729799147102,0.5966702,177.35,177.34,30.95643934]
[1729799148120,0.5966702,177.35,177.33,30.95643934]
[1729799150328,0.5966702,177.35,177.33,19.7898502]
[1729799150504,0.5966702,177.35,177.29,23.776884]
[1729799150815,0.5966702,177.35,177.31,19.7898502]
[1729799154317,0.5966702,177.35,177.32,23.776884]
[1729799155027,0.5966702,177.35,177.32,43.5667342]
[1729799158729,0.5966702,177.35,177.32,23.776884]
[1729799159225,0.5966702,177.35,177.18,19.789851]
[1729799159226,19.7898502,177.34,177.28,23.776884]
[1729799159426,19.7898502,177.34,177.29,19.7898502]
[1729799160034,19.7898502,177.33,177.28,19.7898502]
[1729799161220,19.7898502,177.33,177.29,23.776884]
[1729799161627,19.7898502,177.32,177.27,19.7898502]
[1729799161820,19.7898502,177.31,177.26,19.7898502]
[1729799162132,19.7898502,177.31,177.27,23.776884]
[1729799162350,19.7898502,177.3,177.25,19.7898502]
[1729799162518,19.7898502,177.28,177.2,6.7028]
[1729799162827,19.7898502,177.31,177.26,19.7898502]
[1729799163029,20.84599856,177.33,177.26,19.7898502]
[1729799163226,6.48529856,177.33,177.26,19.7898502]
[1729799163526,19.7898502,177.32,177.27,19.7898502]
[1729799164524,19.7898502,177.32,177.26,19.7898502]
[1729799164943,0.84599856,177.33,177.27,23.776884]
[1729799165245,19.7898502,177.32,177.27,23.776884]
[1729799165628,19.7898502,177.31,177.27,23.776884]
[1729799166523,19.7898502,177.31,177.25,19.7898502]
[1729799166745,19.7898502,177.28,177.23,19.7898502]
[1729799167743,19.7898502,177.27,177.22,19.7898502]
[1729799167943,19.7898502,177.23,177.16,6.1647]
[1729799168146,19.7898502,177.22,177.17,19.7898502]
[1729799168350,19.7898502,177.23,177.17,19.7898502]
[1729799168645,19.7898502,177.19,177.09,13.09910791]
[1729799168829,19.7898502,177.19,177.13,19.7898502]
[1729799169223,19.7898502,177.2,177.14,19.7898502]
[1729799169451,19.7898502,177.2,177.09,6.2647]
[1729799169452,15.274,177.19,177.12,19.7898502]
[1729799169629,19.7898502,177.17,177.12,19.7898502]
[1729799170451,30.99540078,177.16,177.09,6.1647]
[1729799170639,15.49770039,177.16,177.11,30.99540078]
[1729799170841,15.49770039,177.14,177.08,15.49770039]
[1729799171045,30.99540078,177.16,177.11,30.99540078]
[1729799172150,15.274,177.19,177.14,30.99540078]
[1729799172151,46.26940078,177.19,177.14,30.99540078]
[1729799172355,20.0,177.18,177.14,30.99540078]
[1729799172532,15.274,177.19,177.14,30.99540078]
[1729799172732,46.26940078,177.19,177.14,30.99540078]
[1729799173951,15.274,177.19,177.14,30.99540078]
[1729799174537,15.274,177.19,177.15,30.99540078]
[1729799175035,15.274,177.19,177.16,30.99540078]
[1729799176033,16.12073449,177.19,177.15,30.99540078]
[1729799177642,16.12073449,177.19,177.14,30.99540078]
[1729799177842,47.11613527,177.19,177.14,30.99540078]
[1729799179362,47.11613527,177.19,177.13,30.99540078]
[1729799181054,47.11613527,177.19,177.14,30.99540078]
[1729799182264,47.11613527,177.19,177.13,30.99540078]
[1729799182471,30.99540078,177.14,177.09,30.99540078]
[1729799182768,21.76443449,177.19,177.03,5.85892548]
[1729799182769,30.99540078,177.12,177.03,5.85892548]
[1729799182950,30.99540078,177.12,177.07,30.99540078]
[1729799183567,0.22549,177.18,177.02,21.8866]
[1729799183568,30.99540078,177.11,177.05,30.99540078]
[1729799184066,30.99540078,177.11,177.06,30.99540078]
[1729799184451,30.99540078,177.1,177.04,30.99540078]
[1729799184658,30.99540078,177.09,177.04,30.99540078]
[1729799184870,30.99540078,177.07,177.02,30.99540078]
[1729799185764,30.99540078,177.08,177.03,30.99540078]
[1729799186072,20.0,177.08,177.04,30.99540078]
[1729799186466,20.0,177.1,177.07,30.99540078]
[1729799186673,15.2782,177.11,176.99,0.12549]
[1729799186674,15.2782,177.11,177.08,30.99540078]
[1729799186969,15.2782,177.11,177.03,30.99540078]
[1729799186970,15.2782,177.11,177.09,30.99540078]
[1729799187159,37.12580078,177.14,177.08,30.99540078]
[1729799187357,20.0,177.13,177.08,30.99540078]
[1729799187960,20.0,177.13,177.09,30.99540078]
[1729799189061,20.0,177.13,177.1,30.99540078]
[1729799189460,20.0,177.13,177.09,30.99540078]
[1729799190076,20.0,177.13,177.1,30.99540078]
[1729799190376,20.0,177.14,177.1,30.99540078]
[1729799190775,50.99540078,177.14,177.09,30.99540078]
[1729799191981,20.0,177.14,177.1,30.99540078]
[1729799192879,50.99540078,177.14,177.09,30.99540078]
[1729799197083,56.64070078,177.14,177.09,30.99540078]
[1729799197678,30.99540078,177.11,177.05,30.99540078]
[1729799197981,30.99540078,177.12,177.07,30.99540078]
[1729799198183,25.6453,177.14,177.07,30.99540078]
[1729799198184,30.99540078,177.13,177.07,30.99540078]
[1729799198366,30.99540078,177.12,177.07,30.99540078]
[1729799199482,36.64130078,177.12,177.07,30.99540078]
[1729799200283,30.99540078,177.11,177.06,30.99540078]
[1729799201589,36.64160078,177.11,177.06,30.99540078]
[1729799202074,30.99540078,177.1,177.05,30.99540078]
[1729799202380,19.85349734,177.1,177.05,19.85349734]
[1729799202975,25.49969734,177.11,177.06,19.85349734]
[1729799203373,20.0,177.1,177.06,19.85349734]
[1729799204280,20.0,177.13,177.09,19.85349734]
[1729799204781,39.85349734,177.14,177.09,19.85349734]
[1729799205087,19.85349734,177.13,177.08,19.85349734]
[1729799206091,45.49879734,177.14,177.09,19.85349734]
[1729799206681,20.0,177.15,177.09,19.85349734]
[1729799206986,20.0,177.13,177.09,19.85349734]
[1729799207482,19.85349734,177.15,177.1,19.85349734]
[1729799207676,20.0,177.14,177.1,19.85349734]
[1729799210779,20.0,177.14,177.09,19.85349734]
[1729799213692,20.0,177.14,177.1,19.85349734]
[1729799214690,20.0,177.14,177.09,19.85349734]
[1729799214863,20.0,177.14,177.1,19.85349734]
[1729799215062,39.85349734,177.14,177.09,19.85349734]
[1729799215783,20.0,177.14,177.1,19.85349734]
[1729799215989,39.85349734,177.14,177.09,19.85349734]
[1729799217982,20.0,177.14,177.1,19.85349734]
[1729799220493,39.85349734,177.14,177.09,19.85349734]
[1729799221474,20.0,177.14,177.1,19.85349734]
[1729799222173,9.92674867,177.12,177.01,0.25098]